[Event "EYCC Open U14 2018"]
[Site "Riga"]
[Date "2018.08.20"]
[Round "1"]
[White "Mutovin, Egor"]
[Black "Kacharava, Nikolozi"]
[Result "0-1"]
[ECO "A41"]
[WhiteElo "1958"]
[BlackElo "2361"]
[Annotator "NA"]
[PlyCount "76"]
[EventDate "2018.08.20"]
[EventType "swiss"]
[EventCountry "LAT"]
[SourceTitle "playchess.com"]
[Source "ChessBase"]
[SourceQuality "1"]
[TimeControl "40/5400+30:1800+30"]

1. d4 {[%emt 0:00:00]} d6 {[%emt 0:00:00]} 2. Nf3 {[%emt 0:00:00]} Nf6 {[%emt 0:00:00]} 3. c4 {[%emt 0:00:07]} g6 {[%emt 0:00:06]} 4. Nc3 {[%emt 0:00:09]} Bf5 {[%emt 0:00:21] LiveBook: 971 Partien} 5. g3 {[%emt 0:03:06]} Ne4 {[%emt 0:00:32]} 6. Nxe4 {[%emt 0:01:41]} Bxe4 {[%emt 0:00:07]} 7. Bg2 {[%emt 0:00:04]} Bg7 {[%emt 0:00:37]} 8. O-O {[%emt 0:00:09]} O-O {[%emt 0:00:48]} 9. Qb3 {[%emt 0:03:51]} b6 {[%emt 0:06:25]} 10. Qe3 {[%emt 0:05:46]} Bb7 {[%emt 0:07:05]} 11. d5 $11 {[%emt 0:00:12]} Nd7 {[%emt 0:06:33]} 12. Nd4 {[%emt 0:01:34]} Ne5 {[%emt 0:02:10]} 13. b3 {[%emt 0:03:22]} e6 {[%emt 0:04:24]} 14. Bb2 {[%emt 0:02:15]} exd5 {[%emt 0:02:47]} 15. cxd5 {[%emt 0:00:15]} Nd7 {[%emt 0:06:36]} 16. Rac1 {[%emt 0:12:35]} Re8 {[%emt 0:05:04]} 17. Qd2 {[%emt 0:00:25]} Nc5 {[%emt 0:01:41]} 18. Qc2 {[%emt 0:11:12]} a5 {[%emt 0:02:02]} 19. a3 {[%emt 0:00:57]} Qg5 {[%emt 0:17:02]} 20. b4 {[%emt 0:10:53]} axb4 {[%emt 0:01:23]} 21. axb4 {[%emt 0:00:27]} Bxd5 {[%emt 0:03:58]} 22. Bxd5 {[%emt 0:10:43]} Qxd5 {[%emt 0:03:55]} 23. bxc5 {[%emt 0:00:20]} Bxd4 {[%emt 0:01:37]} 24. Rfd1 {[%emt 0:00:48]} bxc5 {[%emt 0:01:54]} 25. e3 {[%emt 0:00:15]} Qf3 {[%emt 0:01:00]} 26. Bxd4 {[%emt 0:02:56]} cxd4 {[%emt 0:00:11]} 27. Rxd4 {[%emt 0:00:04]} Ra7 {[%emt 0:01:50]} 28. Qc6 {[%emt 0:00:32]} Rxe3 {[%emt 0:02:23]} 29. Qd7 {[%emt 0:21:30]} Rd3 {[%emt 0:02:37]} 30. Rf4 {[%emt 0:07:39]} Rd1+ {[%emt 0:00:07]} 31. Rxd1 {[%emt 0:00:03]} Qxd1+ {[%emt 0:00:07]} 32. Kg2 {[%emt 0:00:01]} Qd5+ {[%emt 0:00:09]} 33. Rf3 {[%emt 0:00:17]} Kg7 {[%emt 0:03:47]} 34. Qd8 {[%emt 0:01:30]} Ra8 {[%emt 0:00:42]} 35. Qf6+ {[%emt 0:01:13]} Kg8 {[%emt 0:00:06]} 36. Qe7 {[%emt 0:00:32]} c5 {[%emt 0:00:50]} 37. h4 {[%emt 0:00:31]} h5 {[%emt 0:00:20]} 38. Qf6 {[%emt 0:00:34]} Ra3 {[%emt 0:00:22]} 0-1

[Event "EYCC Open U14 2018"]
[Site "Riga"]
[Date "2018.08.20"]
[Round "1"]
[White "Redzisz, Michal"]
[Black "Gines Esteo, Pedro Antonio"]
[Result "1/2-1/2"]
[ECO "B13"]
[WhiteElo "1947"]
[BlackElo "2336"]
[Annotator "NA"]
[PlyCount "115"]
[EventDate "2018.08.20"]
[EventType "swiss"]
[EventCountry "LAT"]
[SourceTitle "playchess.com"]
[Source "ChessBase"]
[SourceQuality "1"]
[TimeControl "40/5400+30:1800+30"]

1. e4 {[%emt 0:00:00]} c6 {[%emt 0:00:16]} 2. d4 {[%emt 0:00:00]} d5 {[%emt 0:00:11]} 3. exd5 {[%emt 0:00:00]} cxd5 {[%emt 0:00:09]} 4. Bd3 {[%emt 0:00:00]} Nc6 {[%emt 0:00:07]} 5. c3 {[%emt 0:00:02]} Nf6 {[%emt 0:00:44]} 6. Bf4 {[%emt 0:00:05]} Bg4 {[%emt 0:01:18]} 7. Qb3 {[%emt 0:00:08]} Qd7 {[%emt 0:00:05]} 8. Nd2 {[%emt 0:01:07]} e6 {[%emt 0:00:16]} 9. Ngf3 {[%emt 0:00:16]} Bd6 {[%emt 0:01:26]} 10. Bxd6 {[%emt 0:01:18]} Qxd6 {[%emt 0:00:09]} 11. O-O {[%emt 0:09:24]} O-O {[%emt 0:00:35]} 12. Rfe1 {[%emt 0:01:00]} Nd7 $14 {[%emt 0:24:00]} 13. Qc2 {[%emt 0:10:33]} h6 {[%emt 0:04:12]} 14. h3 {[%emt 0:00:27]} Bxf3 {[%emt 0:01:15]} 15. Nxf3 {[%emt 0:01:55]} Rab8 {[%emt 0:02:44]} 16. Qe2 {[%emt 0:02:17]} Rfc8 {[%emt 0:04:09]} 17. Ne5 {[%emt 0:02:48]} Ncxe5 {[%emt 0:02:06]} 18. dxe5 {[%emt 0:00:06]} Qc5 {[%emt 0:01:08]} 19. Qg4 {[%emt 0:02:17]} b5 {[%emt 0:27:33]} 20. Re3 {[%emt 0:01:45]} b4 {[%emt 0:06:33]} 21. Rg3 {[%emt 0:08:07]} Qf8 {[%emt 0:00:08]} 22. Qh5 {[%emt 0:01:28]} bxc3 {[%emt 0:12:19]} 23. bxc3 {[%emt 0:02:04]} Nc5 {[%emt 0:01:17]} 24. Bb1 {[%emt 0:09:52]} Kh8 {[%emt 0:02:02]} 25. Rf3 {[%emt 0:01:10]} Rc7 {[%emt 0:00:14]} 26. g4 {[%emt 0:03:59]} Qe7 {[%emt 0:04:45]} 27. h4 {[%emt 0:02:04]} Rb2 {[%emt 0:02:11]} 28. g5 {[%emt 0:01:29]} Rcb7 {[%emt 0:00:34]} 29. Kg2 {[%emt 0:07:04]} Ne4 {[%emt 0:01:27]} 30. Bxe4 {[%emt 0:02:09]} dxe4 {[%emt 0:00:01]} 31. Rf4 {[%emt 0:02:43]} e3 {[%emt 0:01:03]} 32. gxh6 {[%emt 0:09:34]} Rxf2+ {[%emt 0:00:17]} 33. Rxf2 {[%emt 0:00:06]} exf2 {[%emt 0:00:02]} 34. hxg7+ {[%emt 0:00:59]} Kxg7 {[%emt 0:00:02]} 35. Qg4+ {[%emt 0:03:06]} Kf8 {[%emt 0:00:01]} 36. Kxf2 {[%emt 0:01:06]} Rb2+ {[%emt 0:01:34]} 37. Ke3 {[%emt 0:03:13]} Qc7 {[%emt 0:00:45]} 38. Qd4 {[%emt 0:02:18]} Rb5 {[%emt 0:00:37]} 39. Qd6+ {[%emt 0:10:13]} Qxd6 {[%emt 0:00:02]} 40. exd6 {[%emt 0:00:00]} Rd5 {[%emt 0:00:00]} 41. c4 {[%emt 0:03:04]} Rxd6 {[%emt 0:02:38]} 42. c5 {[%emt 0:00:24]} Rd5 {[%emt 0:15:17]} 43. Rc1 {[%emt 0:00:09]} Ke7 {[%emt 0:00:33]} 44. c6 {[%emt 0:02:27]} Kd8 {[%emt 0:00:49]} 45. c7+ {[%emt 0:00:28]} Kc8 {[%emt 0:00:01]} 46. Rc4 {[%emt 0:01:04]} Rh5 {[%emt 0:04:19]} 47. Kf3 {[%emt 0:03:18]} f5 {[%emt 0:00:20]} 48. Kg3 {[%emt 0:02:56]} Rh7 {[%emt 0:05:32]} 49. Rc5 {[%emt 0:05:30]} Rg7+ {[%emt 0:02:15]} 50. Kf4 {[%emt 0:07:25]} Rg4+ {[%emt 0:02:14]} 51. Ke5 {[%emt 0:00:03]} Re4+ {[%emt 0:01:50]} 52. Kd6 {[%emt 0:00:14]} Rxh4 {[%emt 0:01:07]} 53. Kxe6 {[%emt 0:00:08]} Rh6+ {[%emt 0:00:44]} 54. Ke5 {[%emt 0:01:33]} Rh7 {[%emt 0:00:16]} 55. Kf4 {[%emt 0:02:47]} Rh2 {[%emt 0:00:37]} 56. Ra5 {[%emt 0:00:59]} Kxc7 {[%emt 0:00:22]} 57. Rxa7+ {[%emt 0:00:03]} Kb6 {[%emt 0:00:07]} 58. Rf7 {[%emt 0:00:18]} 1/2-1/2

[Event "EYCC Open U14 2018"]
[Site "Riga"]
[Date "2018.08.21"]
[Round "2"]
[White "Magold, Victor"]
[Black "Trifan, Andrei Ioan"]
[Result "0-1"]
[ECO "A10"]
[WhiteElo "2032"]
[BlackElo "2308"]
[Annotator "NA RC"]
[PlyCount "64"]
[EventDate "2018.08.20"]
[EventType "swiss"]
[EventCountry "LAT"]
[SourceTitle "playchess.com"]
[Source "ChessBase"]
[SourceQuality "1"]
[TimeControl "40/5400+30:1800+30"]

1. c4 {[%emt 0:00:00]} g6 {[%emt 0:00:08]} 2. g3 {[%emt 0:00:00]} Bg7 {[%emt 0:00:59]} 3. Bg2 {[%emt 0:00:00]} d6 {[%emt 0:01:38]} 4. Nc3 {[%emt 0:02:10]} e5 {[%emt 0:01:16]} 5. e3 {[%emt 0:14:31]} f5 {[%emt 0:11:07]} 6. Nge2 {[%emt 0:02:09]} Nf6 {[%emt 0:02:54] LiveBook: 153 Games} 7. d4 {[%emt 0:12:15]} O-O {[%emt 0:07:40]} 8. dxe5 {[%emt 0:02:32]} dxe5 {[%emt 0:00:06]} 9. Qb3 {[%emt 0:00:59]} c6 {[%emt 0:08:16]} 10. O-O {[%emt 0:06:16]} Qe7 {[%emt 0:00:49]} 11. e4 $17 {[%emt 0:23:24]} Be6 {[%emt 0:13:28]} 12. exf5 {[%emt 0:01:42]} gxf5 {[%emt 0:01:56]} 13. Qc2 {[%emt 0:04:24]} Nbd7 {[%emt 0:06:49]} 14. b3 {[%emt 0:01:24]} Qf7 {[%emt 0:05:29]} 15. Ba3 {[%emt 0:02:47]} Rfe8 {[%emt 0:00:59]} 16. Rad1 {[%emt 0:10:44]} Kh8 {[%emt 0:05:55]} 17. Bc1 {[%emt 0:05:48]} Rg8 {[%emt 0:03:50]} 18. f4 {[%emt 0:04:27]} e4 {[%emt 0:04:06]} 19. Nd4 {[%emt 0:00:54]} Nc5 {[%emt 0:02:41]} 20. Bh3 {[%emt 0:01:20]} Qh5 {[%emt 0:02:58]} 21. Nxe6 {[%emt 0:00:58]} Nxe6 {[%emt 0:00:47]} 22. Bg2 {[%emt 0:01:21]} Nd4 {[%emt 0:07:09]} 23. Qb2 {[%emt 0:00:45]} c5 {[%emt 0:01:30]} 24. Rfe1 {[%emt 0:00:35]} Rad8 {[%emt 0:02:14]} 25. h3 {[%emt 0:00:26]} Nf3+ {[%emt 0:00:54]} 26. Bxf3 {[%emt 0:00:09]} Qxf3 {[%emt 0:00:19]} 27. Rxd8 {[%emt 0:00:30]} Qxg3+ {[%emt 0:00:33]} 28. Kf1 {[%emt 0:00:10]} Rxd8 {[%emt 0:01:04]} 29. Be3 {[%emt 0:00:25]} Rd3 {[%emt 0:02:02]} 30. Nd1 {[%emt 0:00:39]} Ng4 {[%emt 0:00:44]} 31. Qg2 {[%emt 0:01:04]} Qxg2+ {[%emt 0:01:00]} 32. Kxg2 {[%emt 0:00:03]} Rxd1 {[%emt 0:00:07]} 0-1

[Event "EYCC Open U14 2018"]
[Site "Riga"]
[Date "2018.08.22"]
[Round "3"]
[White "Oglaza, Oskar"]
[Black "Hoffmann, Yair"]
[Result "1/2-1/2"]
[ECO "B13"]
[WhiteElo "2364"]
[BlackElo "2112"]
[Annotator "NA"]
[PlyCount "96"]
[EventDate "2018.08.20"]
[EventType "swiss"]
[EventCountry "LAT"]
[SourceTitle "playchess.com"]
[Source "ChessBase"]
[SourceQuality "1"]
[TimeControl "40/5400+30:1800+30"]

1. e4 {[%emt 0:00:00]} c6 {[%emt 0:00:00]} 2. d4 {[%emt 0:00:00]} d5 {[%emt 0:00:00]} 3. exd5 {[%emt 0:00:00]} cxd5 {[%emt 0:00:21]} 4. Bd3 {[%emt 0:00:06]} Nc6 {[%emt 0:00:47]} 5. c3 {[%emt 0:00:08]} Nf6 {[%emt 0:04:11]} 6. h3 {[%emt 0:00:17]} g6 {[%emt 0:08:19]} 7. Nf3 {[%emt 0:00:14]} Bg7 {[%emt 0:00:21]} 8. O-O {[%emt 0:02:15]} O-O {[%emt 0:01:07]} 9. Re1 {[%emt 0:04:13]} Qc7 {[%emt 0:05:04]} 10. Bg5 {[%emt 0:00:47] LiveBook: 20 Games} Re8 {[%emt 0:02:37]} 11. Nbd2 {[%emt 0:00:20]} Nh5 {[%emt 0:06:20]} 12. Nf1 {[%emt 0:05:25]} Nf4 {[%emt 0:09:02]} 13. Bxf4 {[%emt 0:01:04]} Qxf4 {[%emt 0:00:18]} 14. Ne3 {[%emt 0:01:25]} Rd8 {[%emt 0:02:22]} 15. Qb3 {[%emt 0:05:14]} Qd6 {[%emt 0:02:33]} 16. Rad1 {[%emt 0:07:25]} b6 {[%emt 0:10:49]} 17. Qa4 {[%emt 0:23:54]} Bd7 {[%emt 0:10:01]} 18. Qb3 {[%emt 0:02:51]} Bc8 {[%emt 0:01:07]} 19. Bb5 {[%emt 0:22:32]} Bb7 {[%emt 0:08:12]} 20. Ng4 {[%emt 0:00:42]} Na5 {[%emt 0:02:45]} 21. Qc2 {[%emt 0:00:09]} a6 {[%emt 0:03:06]} 22. Bd3 {[%emt 0:00:05]} Nc6 {[%emt 0:05:43]} 23. Qd2 {[%emt 0:00:32]} Rf8 {[%emt 0:01:31]} 24. h4 {[%emt 0:10:33]} Rae8 {[%emt 0:02:23]} 25. Nfe5 {[%emt 0:04:53]} Nxe5 {[%emt 0:02:10]} 26. dxe5 {[%emt 0:00:06]} Qe6 {[%emt 0:00:59]} 27. Qg5 {[%emt 0:01:30]} Bc8 {[%emt 0:01:51]} 28. f3 {[%emt 0:00:09]} b5 {[%emt 0:01:08]} 29. h5 {[%emt 0:02:40]} Qb6+ {[%emt 0:00:28]} 30. Kh1 {[%emt 0:01:20]} Bxg4 {[%emt 0:01:10]} 31. Qxg4 {[%emt 0:00:14]} e6 {[%emt 0:03:46]} 32. f4 {[%emt 0:00:40]} Qf2 {[%emt 0:01:02]} 33. Re2 {[%emt 0:00:25]} Qb6 {[%emt 0:00:33]} 34. Bc2 {[%emt 0:00:38]} Rc8 {[%emt 0:01:04]} 35. Rd3 {[%emt 0:00:24]} f5 {[%emt 0:01:21]} 36. exf6 {[%emt 0:00:07]} Rxf6 {[%emt 0:00:07]} 37. Rh3 {[%emt 0:01:45]} Rcf8 {[%emt 0:00:47]} 38. g3 {[%emt 0:00:58]} d4 {[%emt 0:00:47]} 39. hxg6 {[%emt 0:00:28]} h6 {[%emt 0:00:06]} 40. Bb3 {[%emt 0:00:00]} Kh8 {[%emt 0:00:00]} 41. cxd4 {[%emt 0:06:30]} Qxd4 {[%emt 0:04:26]} 42. Qg5 {[%emt 0:12:57]} Qd3 {[%emt 0:10:25]} 43. Rxh6+ {[%emt 0:01:36]} Kg8 {[%emt 0:00:07]} 44. Rxe6 {[%emt 0:09:03]} Qf1+ {[%emt 0:00:27]} 45. Kh2 {[%emt 0:00:06]} Qf2+ {[%emt 0:00:07]} 46. Kh3 {[%emt 0:00:54]} Qf1+ {[%emt 0:00:20]} 47. Kh2 {[%emt 0:04:29]} Qf2+ {[%emt 0:00:08]} 48. Kh3 {[%emt 0:00:08]} Qf1+ {[%emt 0:00:07]} 1/2-1/2

[Event "EYCC Open U14 2018"]
[Site "Riga"]
[Date "2018.08.22"]
[Round "3"]
[White "Pogosyan, Stefan"]
[Black "Solomon, Asif"]
[Result "1-0"]
[ECO "E62"]
[WhiteElo "2331"]
[BlackElo "2073"]
[Annotator "NA"]
[PlyCount "111"]
[EventDate "2018.08.20"]
[EventType "swiss"]
[EventCountry "LAT"]
[SourceTitle "playchess.com"]
[Source "ChessBase"]
[SourceQuality "1"]
[TimeControl "40/5400+30:1800+30"]

1. d4 {[%emt 0:00:00]} Nf6 {[%emt 0:00:00]} 2. c4 {[%emt 0:00:00]} g6 {[%emt 0:00:00]} 3. Nc3 {[%emt 0:00:00]} Bg7 {[%emt 0:00:00]} 4. g3 {[%emt 0:00:00]} O-O {[%emt 0:00:00]} 5. Bg2 {[%emt 0:00:00]} d6 {[%emt 0:00:00]} 6. Nf3 {[%emt 0:00:01]} Nc6 {[%emt 0:00:15]} 7. O-O {[%emt 0:00:07]} e5 {[%emt 0:00:31]} 8. d5 {[%emt 0:00:32]} Nb8 {[%emt 0:00:10]} 9. e4 {[%emt 0:01:12]} a5 {[%emt 0:00:29] E62: King's Indian: Fianchetto: 6...c6 and Panno Variation (6...Nc6) without ...a6} 10. Ne1 {[%emt 0:02:22]} Na6 {[%emt 0:00:29]} 11. Nd3 {[%emt 0:00:10]} Nb4 {[%emt 0:04:02]} (11... Nd7 12. Be3 Ndc5 13. Nxc5 Nxc5 14. Qd2 f5 15. exf5 gxf5 16. f4 e4 {1-0 (50) Svidler,P (2753)-Yu,Y (2759) Shenzhen 2018}) 12. Ne1 {[%emt 0:14:35]} Na6 {[%emt 0:00:10]} 13. b3 {[%emt 0:02:53]} Nc5 {[%emt 0:02:47] LiveBook: 3 Games} (13... Nd7 $11) 14. Rb1 {[%emt 0:02:30]} Bd7 {[%emt 0:07:14]} 15. a3 {[%emt 0:08:23]} Ne8 {[%emt 0:06:28]} 16. Nd3 {[%emt 0:05:17]} b6 {[%emt 0:15:37]} 17. Be3 $146 {[%emt 0:06:54]} ({Predecessor:} 17. b4 Nxd3 18. Qxd3 axb4 19. axb4 f5 20. Bd2 Nf6 21. Ra1 {½-½ (50) Boensch,U-Moehring,G Halle/Saale 1974}) 17... f5 {[%emt 0:06:27]} 18. b4 {[%emt 0:03:01]} axb4 {[%emt 0:03:03]} 19. axb4 {[%emt 0:03:01]} Nxd3 {[%emt 0:05:32]} 20. Qxd3 {[%emt 0:00:11]} f4 {[%emt 0:00:14]} 21. Bd2 {[%emt 0:01:21]} g5 {[%emt 0:04:55]} 22. Ra1 {[%emt 0:05:36]} Rxa1 {[%emt 0:05:00]} 23. Rxa1 {[%emt 0:00:22]} h5 {[%emt 0:01:36]} 24. c5 {[%emt 0:03:01]} bxc5 {[%emt 0:02:27]} 25. bxc5 {[%emt 0:00:07]} h4 {[%emt 0:03:33] [#]} 26. c6 $18 {[%emt 0:04:42]} Bc8 {[%emt 0:06:46]} 27. Ra8 {[%emt 0:00:34]} Nf6 {[%emt 0:04:20]} 28. gxh4 {[%emt 0:06:35]} g4 {[%emt 0:01:02]} 29. Nb5 {[%emt 0:01:42]} Nh5 {[%emt 0:03:39]} 30. Na7 {[%emt 0:05:18]} Ba6 {[%emt 0:03:05]} 31. Rxd8 {[%emt 0:00:06]} Bxd3 {[%emt 0:00:04]} 32. Rxf8+ {[%emt 0:01:13]} Bxf8 {[%emt 0:01:13]} 33. Ba5 {[%emt 0:01:15]} f3 {[%emt 0:02:06]} 34. Bf1 {[%emt 0:00:23]} Bxe4 {[%emt 0:01:42]} 35. Bc4 {[%emt 0:02:44]} Nf4 {[%emt 0:03:49]} 36. Bxc7 {[%emt 0:00:10]} Bxd5 {[%emt 0:01:57]} 37. Bxd5+ {[%emt 0:00:11]} Nxd5 {[%emt 0:00:05]} 38. Bd8 {[%emt 0:00:11]} Kf7 {[%emt 0:02:20]} 39. c7 {[%emt 0:02:29]} Nxc7 {[%emt 0:05:22]} 40. Bxc7 {[%emt 0:00:00]} Ke6 {[%emt 0:00:00]} 41. h5 {[%emt 0:05:42]} d5 {[%emt 0:10:28]} 42. Nb5 {[%emt 0:05:04]} d4 {[%emt 0:01:37]} 43. Ba5 {[%emt 0:08:12]} Bh6 {[%emt 0:12:06]} 44. Bb4 {[%emt 0:11:14]} d3 {[%emt 0:04:39]} 45. Nc7+ {[%emt 0:08:22]} Kf5 {[%emt 0:01:07]} 46. Nd5 {[%emt 0:00:33]} d2 {[%emt 0:00:24]} 47. Nc3 {[%emt 0:00:20]} e4 {[%emt 0:01:25]} 48. Bc5 {[%emt 0:03:02]} g3 {[%emt 0:03:11]} 49. hxg3 {[%emt 0:01:42]} Kg4 {[%emt 0:00:10]} 50. Nd1 {[%emt 0:01:09]} Kxh5 {[%emt 0:00:33]} 51. Be3 {[%emt 0:00:07]} Bxe3 {[%emt 0:00:45]} 52. Nxe3 {[%emt 0:00:01]} Kg5 {[%emt 0:00:25]} 53. Kh2 {[%emt 0:00:07]} Kf6 {[%emt 0:00:37]} 54. g4 {[%emt 0:00:04]} Ke5 {[%emt 0:00:14]} 55. g5 {[%emt 0:00:13]} Kd4 {[%emt 0:00:48]} 56. g6 {[%emt 0:00:07]} 1-0

[Event "EYCC Open U14 2018"]
[Site "Riga"]
[Date "2018.08.22"]
[Round "3"]
[White "Trifan, Andrei Ioan"]
[Black "Torngren, Gustav"]
[Result "1-0"]
[ECO "B39"]
[WhiteElo "2308"]
[BlackElo "2030"]
[Annotator "NA"]
[PlyCount "47"]
[EventDate "2018.08.20"]
[EventType "swiss"]
[EventCountry "LAT"]
[SourceTitle "playchess.com"]
[Source "ChessBase"]
[SourceQuality "1"]
[TimeControl "40/5400+30:1800+30"]

1. e4 {[%emt 0:00:00]} c5 {[%emt 0:00:00]} 2. Nf3 {[%emt 0:00:02]} g6 {[%emt 0:00:12]} 3. d4 {[%emt 0:01:30]} cxd4 {[%emt 0:00:12]} 4. Nxd4 {[%emt 0:00:19]} Bg7 {[%emt 0:00:17]} 5. c4 {[%emt 0:01:12]} Nc6 {[%emt 0:00:50]} 6. Be3 {[%emt 0:00:55]} Nf6 {[%emt 0:00:23]} 7. Nc3 {[%emt 0:00:39]} Ng4 {[%emt 0:00:14]} 8. Qxg4 {[%emt 0:02:21]} Nxd4 {[%emt 0:01:10]} 9. Qd1 {[%emt 0:00:21]} e5 {[%emt 0:00:47]} 10. Bd3 {[%emt 0:09:16]} d6 {[%emt 0:01:37]} 11. O-O {[%emt 0:03:30]} O-O {[%emt 0:00:44]} 12. Qd2 {[%emt 0:03:17]} Be6 {[%emt 0:01:32]} 13. Nd5 {[%emt 0:10:25]} Bxd5 {[%emt 0:01:24] LiveBook: 6 Games [#] B39: Sicilian: Maroczy Bind with 5...Bg7 and 7...Ng4} 14. exd5 $146 {[%emt 0:04:10]} ({Predecessor:} 14. cxd5 f5 15. f3 fxe4 16. Bxe4 Nf5 17. Bf2 Bh6 18. Qd3 Qa5 19. Rfd1 Rac8 20. a3 Qa4 21. b3 {½-½ (88) Kovchan,A (2572)-Guseynov,A (2341) Cesme 2018}) 14... a6 {[%emt 0:05:09]} 15. f4 {[%emt 0:08:13]} Qd7 {[%emt 0:05:09]} 16. Bxd4 {[%emt 0:02:47]} exd4 {[%emt 0:01:33]} 17. f5 {[%emt 0:00:41]} Qe7 {[%emt 0:08:36]} 18. Rae1 {[%emt 0:03:42]} Qh4 {[%emt 0:00:18]} 19. Re4 {[%emt 0:01:59]} Qh6 {[%emt 0:07:26]} 20. Qf2 {[%emt 0:06:34]} Be5 {[%emt 0:00:23]} 21. h3 {[%emt 0:04:22]} g5 {[%emt 0:12:46]} 22. f6 {[%emt 0:07:19]} Rfe8 {[%emt 0:05:21]} 23. Rg4 {[%emt 0:08:17]} Bf4 $18 {[%emt 0:00:58]} (23... Kh8 $16) 24. Qxf4 {[%emt 0:00:33]} 1-0

[Event "EYCC Open U14 2018"]
[Site "Riga"]
[Date "2018.08.22"]
[Round "3"]
[White "Patrelakis, Evaggelos"]
[Black "Munshi, Aditya"]
[Result "1/2-1/2"]
[ECO "B18"]
[WhiteElo "2235"]
[BlackElo "2018"]
[Annotator "NA"]
[PlyCount "64"]
[EventDate "2018.08.20"]
[EventType "swiss"]
[EventCountry "LAT"]
[SourceTitle "playchess.com"]
[Source "ChessBase"]
[SourceQuality "1"]
[TimeControl "40/5400+30:1800+30"]

1. e4 {[%emt 0:00:00]} c6 {[%emt 0:00:00]} 2. d4 {[%emt 0:00:00]} d5 {[%emt 0:00:00]} 3. Nc3 {[%emt 0:00:00]} dxe4 {[%emt 0:00:13]} 4. Nxe4 {[%emt 0:00:04]} Bf5 {[%emt 0:00:23]} 5. Ng3 {[%emt 0:00:08]} Bg6 {[%emt 0:00:09]} 6. h4 {[%emt 0:00:46]} h6 {[%emt 0:00:47]} 7. Nf3 {[%emt 0:00:17]} e6 {[%emt 0:00:31]} 8. Bd3 {[%emt 0:01:09]} Bxd3 {[%emt 0:01:07]} 9. Qxd3 {[%emt 0:00:02]} Nf6 {[%emt 0:10:46]} 10. Bd2 {[%emt 0:03:06]} Nbd7 {[%emt 0:02:03]} 11. O-O-O {[%emt 0:01:09]} Be7 {[%emt 0:01:20]} 12. Ne4 {[%emt 0:02:47]} Nxe4 {[%emt 0:01:49]} 13. Qxe4 {[%emt 0:00:02] LiveBook: 15 Games} Nf6 {[%emt 0:00:22]} 14. Qd3 {[%emt 0:02:17]} Qc7 {[%emt 0:22:54]} 15. Ne5 {[%emt 0:09:25]} Bd6 {[%emt 0:15:40]} 16. Nc4 $11 {[%emt 0:22:13]} Bf4 {[%emt 0:07:17]} 17. g3 {[%emt 0:01:54]} Bxd2+ {[%emt 0:00:48]} 18. Rxd2 {[%emt 0:00:45]} O-O {[%emt 0:01:09]} 19. Ne5 {[%emt 0:08:10]} Rfd8 {[%emt 0:15:47]} 20. Rhd1 {[%emt 0:02:24]} Qa5 {[%emt 0:01:20]} 21. Kb1 {[%emt 0:02:15]} c5 {[%emt 0:00:59]} 22. Qe2 {[%emt 0:02:10]} cxd4 {[%emt 0:00:56]} 23. Rxd4 {[%emt 0:00:02]} Rxd4 {[%emt 0:00:29]} 24. Rxd4 {[%emt 0:00:02]} Rd8 {[%emt 0:00:38]} 25. Nc4 {[%emt 0:04:55]} Qc7 {[%emt 0:01:23]} 26. Qd2 {[%emt 0:01:10]} Rxd4 {[%emt 0:02:24]} 27. Qxd4 {[%emt 0:00:02]} Qc6 {[%emt 0:03:34]} 28. a3 {[%emt 0:01:23]} Qh1+ {[%emt 0:04:06]} 29. Ka2 {[%emt 0:00:11]} Qe4 {[%emt 0:00:11]} 30. Qc3 {[%emt 0:04:06]} Nd5 {[%emt 0:00:17]} 31. Qb3 {[%emt 0:00:18]} Qg2 {[%emt 0:02:30]} 32. f4 {[%emt 0:02:05]} b6 {[%emt 0:01:26]} 1/2-1/2

[Event "EYCC Open U14 2018"]
[Site "Riga"]
[Date "2018.08.22"]
[Round "3"]
[White "Van Dael, Siem"]
[Black "Tsoi, Dmitry"]
[Result "0-1"]
[ECO "B15"]
[WhiteElo "2174"]
[BlackElo "2393"]
[Annotator "NA"]
[PlyCount "42"]
[EventDate "2018.08.20"]
[EventType "swiss"]
[EventCountry "LAT"]
[SourceTitle "playchess.com"]
[Source "ChessBase"]
[SourceQuality "1"]
[TimeControl "40/5400+30:1800+30"]

1. e4 {[%emt 0:00:00]} c6 {[%emt 0:00:00]} 2. d4 {[%emt 0:00:00]} d5 {[%emt 0:00:00]} 3. Nd2 {[%emt 0:00:00]} dxe4 {[%emt 0:00:00]} 4. Nxe4 {[%emt 0:00:00]} Nf6 {[%emt 0:00:00]} 5. Nxf6+ {[%emt 0:02:38]} exf6 {[%emt 0:00:05]} 6. c3 {[%emt 0:00:04]} Bd6 {[%emt 0:00:48]} 7. Bd3 {[%emt 0:04:11]} O-O {[%emt 0:00:19]} 8. Qc2 {[%emt 0:00:13]} h6 {[%emt 0:04:42]} 9. Ne2 {[%emt 0:02:09]} Qc7 {[%emt 0:01:02]} 10. Bd2 {[%emt 0:07:21] LiveBook: 3 Games B15: Caro-Kann: 3 Nc3: 3...g6 and 3...dxe4 4 Nxe4 Nf6 5 Nxf6+ exf6} Be6 {[%emt 0:01:07]} 11. Ng3 {[%emt 0:09:42]} Nd7 {[%emt 0:01:22]} 12. c4 $146 {[%emt 0:12:59]} ({Predecessor:} 12. O-O Rfe8 13. f4 b5 14. b3 Nf8 15. c4 bxc4 16. bxc4 Rad8 17. c5 Be7 {½-½ (40) Asis Gargatagli,H (2538)-Iturrizaga Bonelli,E (2652) Maia 2018}) 12... Rfe8 {[%emt 0:06:52]} 13. O-O {[%emt 0:06:13]} h5 {[%emt 0:07:09]} 14. f4 {[%emt 0:03:18]} h4 {[%emt 0:01:39]} 15. Ne4 {[%emt 0:05:49]} Bg4 $2 {[%emt 0:02:14]} (15... f5 $11 16. Ng5 (16. Nxd6 Qxd6 17. Bc3 Nf6 $14) 16... g6) 16. h3 {[%emt 0:05:40]} Bh5 {[%emt 0:00:19]} 17. g4 {[%emt 0:01:59]} Bg6 {[%emt 0:06:43]} 18. c5 {[%emt 0:10:33]} Bxe4 {[%emt 0:04:35]} 19. Bxe4 {[%emt 0:00:06]} Be7 {[%emt 0:05:26]} 20. f5 {[%emt 0:12:09] [#]} Bxc5 $19 {[%emt 0:02:51]} 21. Qd3 {[%emt 0:09:37]} Qe5 {[%emt 0:03:27]} 0-1